bitfinex/quotes_ETHUSD_20241129
["timestamp","ask_amount","ask_price","bid_price","bid_amount"]
[1732900752032,0.56665736,3589.2,3588.1,4.14995]
[1732900752240,0.56665736,3589.2,3588.2,3.0]
[1732900752519,0.56665736,3589.2,3587.5,2.78737]
[1732900752520,2.78661,3588.6,3587.3,2.78758]
[1732900752763,2.78661,3588.6,3587.4,1.363]
[1732900752930,0.8195,3588.7,3587.4,1.363]
[1732900753136,0.8195,3588.7,3587.4,4.15048]
[1732900753137,2.78666,3588.6,3587.4,4.15048]
[1732900753455,2.78667,3588.5,3587.4,4.15048]
[1732900753659,0.55249511,3588.0,3587.5,0.415048]
[1732900753869,0.55249511,3588.0,3587.4,1.363]
[1732900754221,0.55249511,3588.0,3587.1,1.2599]
[1732900755591,0.55249511,3588.0,3587.1,4.2599]
[1732900755895,0.55249511,3588.0,3587.2,0.704773]
[1732900756408,0.55249511,3588.0,3587.3,2.7876]
[1732900756618,0.55249511,3588.0,3586.8,3.0]
[1732900756619,0.55249511,3588.0,3587.4,7.15702]
[1732900757114,0.8195,3588.7,3587.7,2.78723]
[1732900757409,0.55151577,3588.2,3587.7,2.78723]
[1732900757595,0.55151577,3588.2,3587.6,2.78734]
[1732900757777,0.55151577,3588.2,3587.7,3.781726]
[1732900758411,0.55151577,3588.2,3587.7,0.994436]
[1732900759001,0.55151577,3588.2,3587.7,2.78729]
[1732900759205,0.8195,3588.7,3587.8,3.0]
[1732900759570,0.8195,3588.7,3587.8,2.78721]
[1732900759769,2.78609,3589.3,3588.1,2.78696]
[1732900759989,2.78609,3589.3,3588.2,1.3353]
[1732900760164,0.8271,3589.7,3588.2,1.3353]
[1732900760368,2.78615,3589.2,3588.2,1.3353]
[1732900760587,2.786,3589.4,3588.3,0.690933]
[1732900760785,0.55775892,3588.6,3588.3,0.690933]
[1732900761371,0.55775892,3588.6,3588.2,1.3353]
[1732900761689,5.57188,3589.5,3588.2,4.1222]
[1732900762001,2.78606,3589.3,3588.2,4.1222]
[1732900762288,2.78598,3589.4,3588.2,4.1222]
[1732900762449,2.78605,3589.3,3588.2,1.3353]
[1732900762656,2.78621,3589.1,3588.2,2.047533]
[1732900762895,2.78608,3589.3,3588.2,2.047533]
[1732900763205,3.0,3590.0,3588.2,1.3353]
[1732900763206,2.78623,3589.1,3588.2,1.3353]
[1732900763355,0.54871435,3588.7,3587.8,4.259]
[1732900763556,0.54871435,3588.7,3588.0,3.0]
[1732900763986,0.54871435,3588.7,3587.9,3.0]
[1732900764193,0.54871435,3588.7,3588.0,0.70462]
[1732900765253,0.54871435,3588.7,3588.0,3.49168]
[1732900765457,0.54871435,3588.7,3588.2,2.78683]
[1732900766296,0.54871435,3588.7,3588.0,3.49168]
[1732900766297,0.54871435,3588.7,3588.0,0.70462]
[1732900766592,2.78688,3588.3,3587.4,1.3528]
[1732900766777,2.78688,3588.3,3587.4,1.766854]
[1732900767394,2.78674,3588.5,3587.4,1.766854]
[1732900767696,2.78674,3588.5,3587.4,1.3528]
[1732900767896,2.78674,3588.5,3587.4,4.14032]
[1732900768200,2.78674,3588.5,3587.4,1.3528]
[1732900768362,2.78678,3588.4,3587.4,1.3528]
[1732900768771,2.78692,3588.2,3587.4,1.3528]
[1732900768993,2.78722,3587.8,3587.0,1.268]
[1732900769200,3.33978628,3587.7,3586.6,1.268]
[1732900769379,3.33978628,3587.7,3586.7,0.405622]
[1732900769561,0.55243628,3587.7,3586.8,2.78799]
[1732900769774,0.55243628,3587.7,3586.7,0.405622]
[1732900770067,3.33974628,3587.7,3586.7,0.405622]
[1732900770279,0.55243628,3587.7,3586.7,3.193682]
[1732900770457,0.55243628,3587.7,3586.8,0.72777704]
[1732900771365,0.55243628,3587.7,3586.9,2.78789]
[1732900771567,0.55243628,3587.7,3586.8,0.72777704]
[1732900772099,0.55243628,3587.7,3586.0,3.22196987]
[1732900772100,2.78756,3587.4,3586.1,1.3677]
[1732900772311,0.8271,3587.6,3586.1,4.15619]
[1732900772598,3.0,3587.9,3586.6,2.78809]
[1732900772599,2.78715,3587.9,3586.6,2.78809]
[1732900772771,2.78715,3587.9,3586.7,2.78805]
[1732900772985,2.78715,3587.9,3586.8,0.684448]
[1732900773309,0.54768543,3587.2,3586.8,3.472428]
[1732900773810,0.54768543,3587.2,3586.8,0.684448]
[1732900774094,0.54768543,3587.2,3586.5,1.2682]
[1732900774307,0.54768543,3587.2,3586.6,5.78814]
[1732900774611,0.54768543,3587.2,3586.7,3.0]
[1732900774770,0.54768543,3587.2,3586.5,4.05637]
[1732900775188,0.54768543,3587.2,3586.7,3.0]
[1732900775398,0.54768543,3587.2,3586.8,0.705634]
[1732900776811,1.37478543,3587.2,3586.2,1.291]
[1732900777109,2.78778,3587.1,3586.2,1.291]
[1732900777322,4.16253543,3587.2,3586.2,1.291]
[1732900777323,2.7879,3587.0,3586.2,1.291]
[1732900777807,4.16253543,3587.2,3586.2,1.291]
[1732900778100,2.78785,3587.0,3586.2,1.291]
[1732900778309,4.16252543,3587.2,3586.2,1.698969]
[1732900778597,4.16252543,3587.2,3586.2,1.291]
[1732900778798,3.61484,3587.2,3586.2,1.291]
[1732900779508,0.8271,3587.2,3586.2,4.07946]
[1732900779704,0.8271,3587.2,3586.2,1.291]
[1732900779880,0.8271,3587.2,3586.3,3.496341]
[1732900780081,0.56615563,3586.8,3586.4,2.78826]
[1732900780407,0.8271,3587.6,3586.7,2.78804]
[1732900780607,0.8271,3587.6,3586.5,2.78821]
[1732900781605,0.54863761,3587.0,3586.5,2.78821]
[1732900781807,0.54863761,3587.0,3586.6,0.6284531]
[1732900782826,0.8271,3586.9,3585.4,4.14278]
[1732900783114,0.8271,3586.9,3585.5,0.52002952]
[1732900783363,0.8271,3586.9,3585.6,0.02788581]
[1732900783487,0.8271,3586.9,3586.0,2.78858]
[1732900783670,0.8271,3586.9,3586.1,1.2807]
[1732900783873,0.54863761,3587.0,3586.2,0.685792]
[1732900784180,0.54310062,3587.0,3586.2,0.685792]
[1732900784497,0.54310062,3587.0,3586.2,3.474252]
[1732900785507,0.54310062,3587.0,3586.9,1.3139]
[1732900786022,2.78732,3587.7,3586.9,1.3139]
[1732900786667,2.7873,3587.7,3586.9,1.3139]
[1732900786875,2.7873,3587.7,3586.4,2.78828]
[1732900786876,2.7873,3587.7,3586.5,4.08621]
[1732900787104,2.78748,3587.5,3586.5,2.0540282]
[1732900787314,3.34933832,3587.1,3586.2,1.298]
[1732900787475,2.78793,3586.9,3586.2,1.298]
[1732900787676,0.56156832,3587.1,3586.2,1.298]
[1732900787873,3.34936832,3587.1,3586.2,1.298]
[1732900788119,2.78797,3586.9,3586.2,1.298]
[1732900788413,0.56179148,3586.4,3586.2,1.298]
[1732900788628,0.56179148,3586.4,3585.8,1.2425]
[1732900790117,0.56179148,3586.4,3584.5,3.18094004]
[1732900790118,2.78896,3585.6,3584.6,1.2425]
[1732900790270,0.827,3586.3,3584.6,4.55189184]
[1732900790469,0.827,3586.3,3584.6,1.2425]
[1732900790783,2.7887,3585.9,3584.8,2.78955]
[1732900790971,2.7887,3585.9,3584.9,0.682172]
[1732900791176,2.78846,3586.2,3584.9,3.471622]
[1732900791177,2.78862,3586.0,3584.9,3.471622]
[1732900791369,0.827,3586.3,3584.9,0.682172]
[1732900791610,0.827,3586.3,3584.7,0.02789276]
[1732900791611,2.7886,3586.1,3585.0,2.78938]
[1732900791813,2.78847,3586.2,3585.1,1.3743]
[1732900792016,2.78855,3586.1,3585.1,1.3743]
[1732900792171,3.6154,3586.3,3585.1,1.3743]
[1732900792172,2.78852,3586.2,3585.1,1.3743]
[1732900792515,2.78852,3586.2,3585.1,4.1636]
[1732900792813,2.78852,3586.2,3585.2,3.0]
[1732900793112,0.827,3586.3,3585.3,3.71636]
[1732900793323,0.55358108,3585.5,3585.3,0.71636]
[1732900794052,1.38058108,3585.5,3584.5,1.2662]
[1732900794415,1.38058108,3585.5,3584.5,4.05597]
[1732900794606,1.38058108,3585.5,3584.5,1.2662]
[1732900794807,2.78934,3585.1,3584.0,2.79014]
[1732900795046,2.78934,3585.1,3584.0,3.30965144]
[1732900795349,2.78934,3585.1,3584.1,0.73460614]
[1732900795557,3.61648,3584.9,3584.1,0.73460614]
[1732900795759,2.78956,3584.8,3583.9,1.2461]
[1732900795912,0.827,3584.9,3583.9,1.2461]
[1732900796227,3.01632531,3584.8,3583.9,1.2461]
[1732900796424,0.08721743,3584.7,3583.9,1.2461]
[1732900796751,0.55860994,3584.2,3583.5,0.1560895]
[1732900796913,0.08721743,3584.1,3583.6,0.75731169]
[1732900797115,0.08721743,3584.0,3583.6,0.75731169]
[1732900797344,0.08721743,3583.9,3583.6,0.75731169]
[1732900797546,0.08721743,3583.8,3583.6,0.75731169]
[1732900797845,0.55860994,3584.2,3583.6,0.75731169]
[1732900797846,0.08721743,3583.7,3583.6,3.54780169]
[1732900798054,0.08721743,3584.1,3583.7,2.79039]
[1732900798344,0.08721743,3584.0,3583.7,2.79039]
[1732900798548,0.08721743,3583.9,3583.7,2.79039]
[1732900798714,0.55860994,3584.2,3583.6,0.75731169]
[1732900798715,0.08721743,3584.1,3583.6,3.54778169]
[1732900798914,0.08721743,3584.0,3583.7,0.87038712]
[1732900799139,0.08721743,3583.9,3583.7,0.87038712]
[1732900799314,0.08721743,3584.1,3583.7,0.87038712]
[1732900799658,0.08721743,3584.0,3583.7,0.87038712]
[1732900799808,0.08721743,3584.1,3583.7,0.87038712]
[1732900800013,0.08721743,3584.0,3583.7,0.87038712]
[1732900800354,0.08721743,3583.9,3583.7,0.87038712]
[1732900800512,0.08721743,3584.1,3583.8,0.17837883]
[1732900800714,0.08721743,3584.0,3583.8,0.17837883]
[1732900800916,0.08721743,3584.1,3583.8,2.96870883]
[1732900801130,0.08721743,3584.0,3583.9,4.1004]
[1732900801350,0.08721743,3584.4,3584.3,5.78994]
[1732900801635,0.1,3586.9,3584.3,5.78994]
[1732900801636,0.08721743,3584.8,3584.7,2.78963]
[1732900801853,0.08721743,3585.0,3584.7,2.78963]
[1732900802048,0.08721743,3585.0,3584.8,2.78955]
[1732900802273,0.08721743,3585.5,3585.0,2.78933]
[1732900802571,0.08721743,3585.6,3585.1,1.817988]
[1732900802742,0.08721743,3585.5,3585.2,2.78918]
[1732900802926,0.08721743,3585.9,3585.1,1.2601]
[1732900803126,0.56882433,3585.5,3585.0,2.78938]
[1732900803363,0.08721743,3585.4,3585.1,2.78931]
[1732900803572,0.08721743,3585.8,3585.5,2.78894]
[1732900803790,0.08721743,3586.3,3585.8,2.78877]
[1732900804079,0.55401151,3586.3,3585.8,2.78877]
[1732900804486,0.55401151,3586.3,3585.7,2.78882]
[1732900804631,0.55401151,3586.3,3585.6,0.68209]
[1732900804632,0.08716469,3586.2,3585.6,0.68209]
[1732900804827,0.827,3586.1,3584.9,2.78941]
[1732900805075,0.827,3585.4,3584.2,2.79002]
[1732900805277,0.08716469,3585.3,3584.0,4.04596]
[1732900805432,0.08716469,3585.2,3584.4,2.78984]
[1732900805631,0.08716469,3585.2,3584.1,2.79004]
[1732900805632,0.08716469,3585.1,3584.1,2.79004]
[1732900805882,0.08716469,3585.0,3584.2,3.473608]
[1732900806082,0.5474261,3584.8,3584.3,2.78993]
[1732900806287,0.63459079,3584.8,3584.3,2.78993]
[1732900806574,0.08716469,3584.7,3584.3,2.78993]
[1732900806776,0.08716469,3584.7,3584.2,0.683608]
[1732900806777,0.08716469,3584.7,3584.4,2.78984]
[1732900807121,0.827,3584.6,3583.7,1.2533]
[1732900807406,2.78987,3584.4,3583.4,7.7906]
[1732900807587,0.08721124,3584.5,3583.4,5.0]
[1732900807745,0.08721124,3584.4,3583.7,2.79034]
[1732900807939,0.827,3584.6,3583.7,2.79034]
[1732900807940,0.08721124,3584.3,3583.7,2.79034]
[1732900808145,0.08721124,3584.2,3583.7,3.86403595]
[1732900808379,0.08721124,3584.5,3583.9,2.79025]
[1732900808599,0.08721124,3584.4,3583.7,1.07369595]
[1732900808765,0.63988335,3584.3,3583.5,2.9465895]
[1732900808961,0.08721124,3584.2,3583.6,3.0]
[1732900809167,0.55267211,3584.3,3583.9,2.79019]
[1732900809366,2.7888,3585.8,3584.7,2.78961]
[1732900809582,0.827,3586.0,3584.7,3.0]
[1732900809583,0.08721019,3585.7,3584.7,3.0]
[1732900809801,0.08721019,3585.6,3584.9,3.0]
[1732900809949,0.08721019,3585.5,3584.8,0.5817605]
[1732900810155,0.827,3586.0,3584.7,2.78958]
[1732900810156,0.63776157,3585.4,3584.7,2.78958]
[1732900810451,0.08721019,3585.3,3584.8,5.78953]
[1732900810652,0.08721019,3585.2,3584.8,5.78953]
[1732900810881,0.55055138,3585.4,3584.8,5.78953]
[1732900810882,0.08721019,3585.3,3584.9,2.78947]
[1732900811189,0.08721019,3585.3,3585.2,2.78924]
[1732900811395,0.08721019,3585.9,3585.2,0.55787]
[1732900811685,0.827,3586.0,3585.0,2.78935]
[1732900811686,0.08721019,3585.8,3585.0,2.78935]
[1732900811885,0.827,3586.0,3562.4,31.60754425]
[1732900811886,0.827,3585.4,3584.0,1.3251]
[1732900812092,2.78989,3584.4,3583.5,0.1560895]
[1732900812247,2.79002,3584.2,3583.5,0.1560895]
[1732900812452,0.08721019,3584.1,3583.5,0.1560895]
[1732900812676,0.55908853,3583.8,3583.5,0.1560895]
[1732900812876,0.08721019,3583.7,3583.5,0.1560895]
[1732900813064,0.55908853,3583.8,3583.5,0.1560895]
[1732900813065,0.08721019,3583.6,3583.5,0.1560895]
[1732900813263,0.08721019,3583.7,3583.5,0.1560895]
[1732900813483,0.08721019,3583.6,3583.5,0.1560895]
[1732900813695,0.08721019,3583.7,3583.5,0.1560895]
[1732900813909,3.70470019,3583.6,3583.5,0.1560895]
[1732900814249,0.91421019,3583.6,3583.5,0.1560895]
[1732900814477,3.70470019,3583.6,3583.5,0.1560895]
[1732900815050,0.91421019,3583.6,3583.5,0.1560895]
[1732900817413,3.70470019,3583.6,3583.5,0.1560895]
[1732900818405,0.91421019,3583.6,3583.5,0.1560895]
[1732900818776,0.08721019,3583.6,3583.5,0.91340119]
[1732900819922,0.55908853,3583.8,3583.5,3.70396119]
[1732900820114,0.0872332,3583.6,3583.5,3.70396119]
[1732900820803,0.0872332,3583.6,3583.5,6.70396119]
[1732900821006,0.1,3586.0,3583.9,2.79019]
[1732900821007,0.57046014,3584.2,3583.9,2.79019]
[1732900821213,0.0872332,3584.1,3583.9,2.79019]
[1732900821417,0.0872332,3584.0,3583.9,2.79019]
[1732900821714,0.0872332,3584.0,3583.6,4.69116786]
[1732900822013,0.0872332,3583.9,3583.6,4.69116786]
[1732900822180,0.57046014,3584.2,3583.7,1.06045691]
[1732900822181,0.0872332,3583.8,3583.7,1.06045691]
[1732900822685,0.0872332,3583.8,3583.7,3.85086691]
[1732900822892,0.0872332,3583.8,3583.7,1.06045691]
[1732900823274,0.0872332,3583.8,3583.5,0.1560895]
[1732900823584,0.0872332,3583.7,3583.5,0.1560895]
[1732900823796,0.0872332,3583.6,3583.5,0.1560895]
[1732900826183,2.79027,3583.9,3583.5,0.1560895]
[1732900826387,2.79018,3584.0,3583.5,0.1560895]
[1732900826388,0.55273169,3583.6,3583.5,0.1560895]
[1732900826579,0.63997413,3583.6,3583.5,0.1560895]
[1732900826779,1.46727413,3583.6,3583.5,0.1560895]
[1732900827337,0.63997413,3583.6,3583.5,0.1560895]
[1732900827811,0.63997413,3583.6,3583.5,0.91340119]
[1732900827812,0.08724244,3583.6,3583.5,0.91340119]
[1732900828283,0.08724244,3583.6,3583.5,0.1560895]
[1732900830223,0.08724244,3583.6,3583.5,2.9466495]
[1732900830380,0.08724244,3583.6,3583.5,0.1560895]
[1732900830826,0.08724244,3583.6,3583.5,4.2537495]
[1732900831455,0.56586231,3584.1,3583.6,2.79046]
[1732900831629,0.08722607,3584.0,3583.8,2.79032]
[1732900831812,0.08722607,3584.0,3583.7,1.20442095]
[1732900832114,0.08722607,3583.9,3583.7,1.20442095]
[1732900832315,0.08722607,3583.9,3583.5,0.1560895]
[1732900832651,0.8273,3583.8,3583.5,0.1560895]
[1732900833348,0.08723766,3583.7,3583.5,0.1560895]
[1732900833520,0.08723766,3583.6,3583.5,0.1560895]
[1732900833923,0.8273,3583.8,3583.5,0.1560895]
[1732900834121,0.08724176,3583.6,3583.5,0.1560895]
[1732900834450,2.87773176,3583.6,3583.5,0.1560895]
[1732900834608,0.08724176,3583.6,3583.5,0.1560895]
[1732900834808,0.08724176,3583.6,3583.5,0.91340119]
[1732900836422,0.08724176,3583.6,3583.5,3.70396119]
[1732900836754,0.08724176,3583.6,3583.5,8.27509334]
[1732900836960,0.8273,3585.2,3584.5,2.78973]
[1732900837105,0.8273,3585.2,3583.6,3.0]
[1732900837106,0.8273,3585.2,3584.4,1.3107]
[1732900837309,0.5663121,3584.8,3584.4,4.789626]
[1732900837739,0.5663121,3584.8,3584.4,1.999766]
[1732900838443,0.8273,3585.6,3584.4,1.999766]
[1732900838743,0.54995631,3585.3,3584.8,2.7895]
[1732900838950,0.54995631,3585.3,3584.9,5.78941]
[1732900839106,0.54995631,3585.3,3585.0,2.78939]
[1732900839448,2.78829,3586.5,3584.9,3.0]
[1732900839449,0.8273,3587.2,3585.3,1.293]
[1732900839655,3.61505,3587.2,3586.2,1.293]
[1732900839864,2.78782,3587.1,3586.3,0.408152]
[1732900840030,0.8273,3587.2,3586.3,0.408152]
[1732900840215,3.61499,3587.2,3586.3,0.408152]
[1732900840410,0.56396758,3586.7,3586.3,0.408152]
[1732900840732,0.56396758,3586.7,3586.2,1.293]
[1732900840908,3.61499,3587.2,3586.3,2.78837]
[1732900841626,0.8273,3587.2,3586.3,2.78837]
[1732900842014,0.8273,3587.2,3586.2,1.293]
[1732900842224,0.8273,3587.2,3586.5,2.78822]
[1732900842430,2.78747,3587.5,3586.5,2.78822]
[1732900842718,3.61468,3587.6,3586.6,2.78809]
[1732900843035,0.8273,3587.6,3586.5,2.78819]
[1732900843412,0.55823583,3587.3,3586.5,2.78819]
[1732900843616,0.55823583,3587.3,3586.6,2.78808]
[1732900843962,0.55823583,3587.3,3586.2,4.08144]
[1732900844125,0.55823583,3587.3,3586.4,2.78824]
[1732900844470,0.55823583,3587.3,3586.5,2.78817]
[1732900844627,0.55823583,3587.3,3586.2,4.08145]
[1732900844628,2.78774,3587.2,3586.2,4.08145]
[1732900844825,2.78774,3587.2,3584.8,2.88955]
[1732900844826,0.8273,3586.9,3585.8,1.2712]
[1732900845062,0.8273,3586.9,3585.7,2.78881]
[1732900845063,2.7881,3586.7,3585.7,2.78881]
[1732900845224,3.61524,3586.9,3585.1,1.2712]
[1732900845419,3.61524,3586.9,3585.5,1.2712]
[1732900845420,0.8273,3586.9,3585.5,1.2712]
[1732900845625,0.8273,3586.9,3586.2,2.7884]
[1732900845836,0.8273,3586.9,3585.5,1.2712]
[1732900845837,0.8273,3586.9,3585.7,2.78879]
[1732900846055,0.8273,3586.9,3584.8,0.1]
[1732900846056,0.56325844,3586.9,3585.9,1.3375]
[1732900846343,0.56325844,3586.9,3586.3,2.78833]
[1732900846758,0.56325844,3586.9,3586.1,2.78847]
[1732900846981,0.56325844,3586.9,3586.2,2.78846]
[1732900847141,0.56325844,3586.9,3586.0,2.78862]
[1732900847322,0.56325844,3586.9,3586.0,0.991488]
[1732900847526,0.56325844,3586.9,3586.5,2.78822]
[1732900847737,0.56325844,3586.9,3586.3,2.78837]
[1732900847945,0.8273,3587.3,3586.0,0.02788277]
[1732900848172,0.8273,3587.3,3586.7,2.78807]
[1732900848671,0.8273,3587.3,3586.8,2.78799]
[1732900848868,0.8273,3587.3,3586.5,2.78823]
[1732900849069,0.8273,3587.3,3586.5,0.278823]
[1732900849374,0.8273,3587.3,3586.6,2.78815]
[1732900849542,0.8273,3587.3,3586.4,2.7883]
[1732900849735,0.8273,3587.3,3586.4,2.78824]
[1732900849943,0.8273,3587.3,3586.7,2.78807]
[1732900850474,0.8273,3587.3,3586.4,2.78826]
[1732900850688,0.56080865,3587.1,3586.5,0.278826]
[1732900850971,0.56080865,3587.1,3586.4,2.78826]
[1732900851469,0.56080865,3587.1,3586.2,2.78845]
[1732900851767,0.56080865,3587.1,3586.5,2.78822]
[1732900853076,3.34864865,3587.1,3586.1,2.78853]
[1732900853242,2.78795,3586.9,3586.1,3.0]
[1732900853444,3.34862865,3587.1,3586.1,5.78848]
[1732900853644,0.56080865,3587.1,3586.5,2.78816]
[1732900853847,0.56080865,3587.1,3586.1,0.991467]
[1732900853848,0.56080865,3587.1,3586.7,2.788]
[1732900854066,0.56080865,3587.1,3586.5,2.78822]
[1732900854270,3.34862865,3587.1,3586.1,3.779977]
[1732900854465,3.34862865,3587.1,3585.7,5.78883]
[1732900854466,0.8329,3586.7,3585.7,5.78883]
[1732900854766,3.62098,3586.7,3585.9,2.78862]
[1732900855142,3.62098,3586.7,3585.5,1.2533]
[1732900855143,0.8329,3586.7,3586.0,2.78856]
[1732900855672,0.8329,3586.7,3586.2,2.78844]
[1732900856038,3.34861865,3587.1,3586.3,2.78836]
[1732900856039,0.56080865,3587.1,3586.3,2.78836]
[1732900856236,0.56080865,3587.1,3586.4,2.78829]
[1732900856570,0.56080865,3587.1,3586.4,2.78825]
[1732900857161,0.56080865,3587.1,3586.6,2.78813]
[1732900857679,0.56080865,3587.1,3586.4,2.78825]
[1732900858482,0.56080865,3587.1,3586.2,4.04174]
[1732900858665,0.56080865,3587.1,3586.3,2.78838]
[1732900859542,0.56080865,3587.1,3586.3,3.4714]
[1732900859774,0.56080865,3587.1,3586.4,2.7883]
[1732900859988,3.34858865,3587.1,3586.3,0.68302]
[1732900860141,2.78805,3586.8,3585.9,2.78869]
[1732900860339,2.78805,3586.8,3585.9,3.771222]
[1732900860676,2.78791,3587.0,3586.1,2.78846]
[1732900860877,0.56080865,3587.1,3586.0,2.78862]
[1732900861083,0.8329,3587.6,3587.1,2.78769]
[1732900861283,2.78712,3588.0,3587.4,2.78748]
[1732900861284,0.56093376,3587.8,3587.4,2.78748]
[1732900861455,0.8329,3588.0,3587.7,2.7873]
[1732900861772,0.56266297,3588.0,3586.4,3.82506304]
[1732900862078,0.56266297,3588.0,3586.1,3.0]
[1732900862079,2.78735,3587.7,3586.2,1.3276]
[1732900862283,2.78722,3587.8,3586.8,2.78799]
[1732900862445,0.8329,3587.9,3586.8,2.78799]
[1732900862446,0.8329,3587.9,3586.9,0.02787878]
[1732900862641,0.8329,3587.9,3587.4,2.78753]
[1732900862844,0.8329,3587.9,3587.0,2.78782]
[1732900863140,3.62009,3587.9,3586.9,1.2698]
[1732900863573,2.7873,3587.7,3586.6,5.78812]
[1732900863882,0.8329,3587.4,3586.6,5.78809]
[1732900864086,0.8329,3587.4,3586.7,2.78803]
[1732900864252,0.8329,3587.7,3586.8,2.788]
[1732900864455,0.8329,3588.0,3587.4,2.78753]
[1732900864938,0.8329,3588.0,3587.5,2.78745]
[1732900865044,0.8329,3588.0,3586.9,1.2698]
[1732900865045,0.8329,3588.0,3587.6,2.78736]
[1732900865394,0.8329,3588.0,3587.3,2.78759]
[1732900865597,0.8329,3588.0,3587.5,2.7874]
[1732900865797,0.56480664,3588.1,3587.6,2.78735]
[1732900866247,0.56480664,3588.1,3587.4,2.78748]
[1732900866447,0.56480664,3588.1,3587.3,2.78758]
[1732900866448,0.56480664,3588.1,3587.5,2.78738]
[1732900866858,0.56480664,3588.1,3587.2,3.54646304]
[1732900867194,2.78629,3589.0,3588.2,2.7869]
[1732900867195,3.61924,3589.0,3588.2,2.7869]
[1732900867348,0.55672045,3588.6,3588.2,2.7869]
[1732900868370,0.8329,3589.0,3588.3,2.78683]
[1732900868544,0.8329,3589.0,3588.5,2.78665]
[1732900868749,0.8329,3589.0,3588.4,2.78669]
[1732900868990,0.8329,3589.0,3588.3,2.78681]
[1732900869351,0.8329,3589.0,3588.4,2.78672]
[1732900869850,0.8329,3589.0,3588.3,2.78681]
[1732900870067,3.61881,3589.5,3588.6,2.7866]
[1732900870294,0.55504744,3588.8,3588.4,3.191141]
[1732900870706,0.55504744,3588.8,3588.6,2.78653]
[1732900870914,0.55504744,3588.8,3588.5,3.30642021]
[1732900871199,0.55504744,3588.8,3588.6,0.51975021]
[1732900871200,0.8329,3588.7,3588.6,0.51975021]
[1732900871372,0.8329,3588.7,3588.0,0.43312518]
[1732900871373,3.61943,3588.7,3588.0,0.43312518]
[1732900871563,3.61943,3588.7,3588.1,0.51962078]
[1732900871859,3.61943,3588.7,3587.2,3.54646304]
[1732900871860,2.78706,3588.0,3587.9,0.43312518]
[1732900872199,3.0,3589.0,3586.1,2.7885]
[1732900872200,0.55,3589.2,3587.6,2.7873]
[1732900872402,0.8329,3589.1,3587.6,0.41126]
[1732900872649,0.8329,3589.1,3588.3,2.78678]
[1732900872874,0.8329,3589.1,3588.4,0.51975439]
[1732900872875,0.56018956,3588.8,3588.4,0.51975439]
[1732900873014,0.56018956,3588.8,3587.9,0.43312518]
[1732900873215,3.34663956,3588.8,3588.0,3.30666818]
[1732900873415,3.34663956,3588.8,3588.1,0.51962818]
[1732900873616,2.78659,3588.7,3588.2,0.51962818]
[1732900873859,2.78661,3588.6,3587.7,0.43295353]
[1732900874018,3.34664956,3588.8,3587.8,0.51956782]
[1732900874217,2.78653,3588.7,3587.9,0.51956782]
[1732900874516,0.56018956,3588.8,3588.1,2.78698]
[1732900874712,0.56018956,3588.8,3588.2,3.30636856]
[1732900874912,0.56018956,3588.8,3588.2,2.78691]
[1732900875145,3.34664956,3588.8,3588.3,0.51944945]
[1732900875409,3.34664956,3588.8,3587.7,0.43295353]
[1732900875410,2.7868,3588.4,3587.7,0.43295353]
[1732900875636,2.7868,3588.4,3587.8,0.51956648]
[1732900875838,0.8329,3588.7,3587.8,0.51956648]
[1732900875839,0.8329,3588.7,3587.9,0.51956648]
[1732900876041,0.8329,3588.7,3588.0,0.51956648]
[1732900876264,0.8329,3588.7,3588.3,2.78678]
[1732900876464,0.56018956,3588.8,3588.4,0.51956648]
[1732900876670,0.56018956,3588.8,3588.5,0.51956648]
[1732900876866,0.56018956,3588.8,3588.6,0.51956648]
[1732900877034,0.56018956,3588.8,3588.5,2.78666]
[1732900877269,0.56018956,3588.8,3588.6,0.51941947]
[1732900877495,0.56018956,3588.8,3588.6,0.74523995]
[1732900877630,0.8351,3589.4,3588.9,2.78634]
[1732900877830,0.8351,3589.4,3589.0,0.5192915]
[1732900878039,0.8351,3589.4,3588.9,2.78634]
[1732900878040,0.55918594,3589.3,3588.9,2.78634]
[1732900878266,0.55918594,3589.3,3588.7,2.78652]
[1732900878267,0.8351,3590.9,3589.0,1.86988661]
[1732900878467,0.8351,3589.9,3589.2,2.78613]
[1732900878669,2.78575,3589.7,3588.8,3.21937353]
[1732900878979,0.56258711,3589.5,3589.0,2.78628]
[1732900879156,0.56258711,3589.5,3589.1,0.51911417]
[1732900879355,0.56258711,3589.5,3588.8,2.78639]
[1732900879568,0.56258711,3589.5,3588.9,0.51899405]
[1732900879726,0.56258711,3589.5,3589.0,0.51899405]
[1732900879925,2.78601,3589.4,3589.1,0.51899405]
[1732900880147,0.8351,3589.4,3588.6,0.43295353]
[1732900880347,0.8351,3589.4,3588.8,2.7864]
[1732900880569,0.8351,3589.4,3588.7,0.51900086]
[1732900880570,0.8351,3589.4,3588.9,3.30536086]
[1732900880795,0.8351,3589.4,3589.0,0.51900086]
[1732900880957,0.8351,3589.4,3589.1,0.51900086]
[1732900881165,0.56258711,3589.5,3588.9,2.78636]
[1732900881372,0.24084537,3591.1,3588.9,2.78636]
[1732900881373,0.8351,3590.2,3589.4,2.78597]
[1732900881702,0.55965146,3590.0,3589.5,0.51890642]
[1732900882000,0.55965146,3590.0,3589.2,3.21906353]
[1732900882001,3.34522146,3590.0,3589.6,0.51890642]
[1732900882175,3.34522146,3590.0,3589.2,3.21906353]
[1732900882176,3.34522146,3590.0,3589.2,2.78611]
[1732900882361,2.78563,3589.9,3589.3,0.51873757]
[1732900882562,2.78563,3589.9,3589.4,0.51873757]
[1732900882799,0.55965146,3590.0,3589.0,0.43295353]
[1732900882800,2.78568,3589.8,3589.0,0.43295353]
[1732900883009,2.78567,3589.8,3589.1,0.51873437]
[1732900883162,5.57155,3589.7,3589.2,0.51873437]
[1732900883370,0.55965146,3590.0,3588.9,5.78631]
[1732900883371,0.8351,3589.9,3588.9,0.43235765]
[1732900883697,3.0,3590.5,3587.4,2.78747]
[1732900883698,2.78639,3588.9,3587.9,2.78714]
[1732900883891,2.78629,3589.0,3588.5,0.43238309]